[Event "Catalan Youth-ch 2020"]
[Site "Salou"]
[Date "2020.09.06"]
[Round "3.3"]
[White "Rodriguez Gonzalez, Gerard"]
[Black "Garcia Caro, Juan Alberto"]
[Result "1-0"]
[ECO "B26"]
[WhiteElo "1714"]
[BlackElo "1933"]
[Annotator "NA"]
[PlyCount "85"]
[EventDate "2020.09.07"]
[EventType "swiss"]
[EventCountry "ESP"]
[SourceTitle "playchess.com"]
[Source "ChessBase"]
[SourceQuality "1"]
[TimeControl "5400+30"]

1. e4 {[%emt 0:01:13]} c5 {[%emt 0:00:00]} 2. Nc3 {[%emt 0:00:18]} e6 {[%emt 0:01:10]} 3. g3 {[%emt 0:01:41]} Nc6 {[%emt 0:01:30]} 4. Bg2 {[%emt 0:00:59]} g6 {[%emt 0:00:24]} 5. d3 {[%emt 0:00:40]} Bg7 {[%emt 0:00:23]} 6. Be3 {[%emt 0:00:50]} Nd4 {[%emt 0:02:08]} 7. Qd2 {[%emt 0:02:25]} Rb8 {[%emt 0:02:54]} 8. Nd1 {[%emt 0:02:26]} d6 {[%emt 0:10:42]} 9. c3 {[%emt 0:02:42]} Nc6 {[%emt 0:00:11]} 10. Ne2 {[%emt 0:01:17]} Bd7 {[%emt 0:04:49]} 11. O-O {[%emt 0:04:14]} Nge7 {[%emt 0:00:27]} 12. d4 {[%emt 0:03:03]} cxd4 {[%emt 0:04:57]} 13. Nxd4 {[%emt 0:01:23]} Ne5 {[%emt 0:10:50]} 14. Bh6 {[%emt 0:08:34]} O-O {[%emt 0:01:55]} 15. Bxg7 {[%emt 0:01:58]} Kxg7 {[%emt 0:00:06]} 16. Ne3 {[%emt 0:00:37]} f5 {[%emt 0:17:15]} 17. exf5 {[%emt 0:04:20]} gxf5 {[%emt 0:03:02]} 18. Rad1 {[%emt 0:03:50]} N5g6 {[%emt 0:03:29]} 19. Ne2 {[%emt 0:02:01]} Nc8 {[%emt 0:03:19]} 20. Rfe1 {[%emt 0:03:48]} f4 {[%emt 0:03:46]} 21. gxf4 {[%emt 0:04:24]} Nxf4 {[%emt 0:00:25]} 22. Nxf4 {[%emt 0:09:03]} Rxf4 {[%emt 0:00:07]} 23. Nf1 {[%emt 0:01:08]} Rg4 {[%emt 0:05:03]} 24. Ng3 {[%emt 0:01:19]} Kh8 {[%emt 0:06:47]} 25. Re4 {[%emt 0:01:31]} Rg7 {[%emt 0:02:53]} 26. Qh6 {[%emt 0:02:36]} Rg6 {[%emt 0:02:04]} 27. Qh5 {[%emt 0:00:58]} Qg8 {[%emt 0:01:25]} 28. Bh3 {[%emt 0:02:23]} d5 {[%emt 0:00:55]} 29. Qe5+ {[%emt 0:02:31]} Qg7 {[%emt 0:00:52]} 30. Qxb8 {[%emt 0:01:06]} dxe4 {[%emt 0:00:36]} 31. Qxb7 {[%emt 0:01:11]} Nb6 {[%emt 0:02:49]} 32. Qxa7 {[%emt 0:01:15]} Nd5 {[%emt 0:01:24]} 33. c4 {[%emt 0:01:17]} Nf6 {[%emt 0:03:15]} 34. b4 {[%emt 0:03:32]} h5 {[%emt 0:01:37]} 35. Qb8+ {[%emt 0:01:40]} Ng8 {[%emt 0:02:31]} 36. Qf4 {[%emt 0:01:14]} e5 {[%emt 0:01:07]} 37. Qh4 {[%emt 0:00:21]} Bxh3 {[%emt 0:00:28]} 38. Qxh3 {[%emt 0:00:07]} Nf6 {[%emt 0:00:35]} 39. Kf1 {[%emt 0:01:02]} Qh6 {[%emt 0:00:39]} 40. Qf5 {[%emt 0:03:32]} Rg5 {[%emt 0:00:30]} 41. Qe6 {[%emt 0:02:38]} h4 {[%emt 0:00:27]} 42. Nf5 {[%emt 0:00:46]} Qh7 {[%emt 0:00:38]} 43. Qxf6+ {[%emt 0:00:34]} 1-0

[Event "Catalan Youth-ch 2020"]
[Site "Salou"]
[Date "2020.09.06"]
[Round "3.4"]
[White "Toquero Gracia, Pau"]
[Black "Ros Alonso, Joana"]
[Result "1-0"]
[ECO "C00"]
[WhiteElo "2066"]
[BlackElo "2014"]
[Annotator "NA"]
[PlyCount "109"]
[EventDate "2020.09.07"]
[EventType "swiss"]
[EventCountry "ESP"]
[SourceTitle "playchess.com"]
[Source "ChessBase"]
[SourceQuality "1"]
[TimeControl "5400+30"]

1. Nf3 {[%emt 0:00:00]} Nf6 {[%emt 0:00:00]} 2. d3 {[%emt 0:00:00]} d5 {[%emt 0:01:32]} 3. Nbd2 {[%emt 0:01:45]} e6 {[%emt 0:02:35]} 4. e4 {[%emt 0:00:00]} dxe4 {[%emt 0:00:09]} 5. dxe4 {[%emt 0:00:00]} Bc5 {[%emt 0:00:11]} 6. h3 {[%emt 0:00:56]} Nc6 {[%emt 0:00:51]} 7. Bb5 {[%emt 0:02:44]} Bd7 {[%emt 0:01:37]} 8. c3 {[%emt 0:01:30]} a6 {[%emt 0:00:44]} 9. Ba4 {[%emt 0:00:25]} b5 {[%emt 0:02:11]} 10. Bc2 {[%emt 0:00:07]} e5 {[%emt 0:00:09]} 11. Qe2 {[%emt 0:11:36]} O-O {[%emt 0:02:19]} 12. Nf1 {[%emt 0:01:59]} Be6 {[%emt 0:10:13]} 13. Bb3 {[%emt 0:00:18]} Bc8 {[%emt 0:15:24]} 14. Bg5 {[%emt 0:02:52]} Qe7 {[%emt 0:02:18]} 15. Ng3 {[%emt 0:04:25]} h6 {[%emt 0:01:11]} 16. Be3 {[%emt 0:05:28]} Na5 {[%emt 0:02:39]} 17. O-O {[%emt 0:15:04]} Nxb3 {[%emt 0:08:24]} 18. axb3 {[%emt 0:00:07]} Bxe3 {[%emt 0:00:49]} 19. Qxe3 {[%emt 0:01:56]} Qe6 {[%emt 0:00:15]} 20. Qc5 {[%emt 0:09:43]} Bb7 {[%emt 0:14:35]} 21. Qxc7 {[%emt 0:03:33]} Bxe4 {[%emt 0:00:25]} 22. Nxe4 {[%emt 0:02:15]} Nxe4 {[%emt 0:00:16]} 23. Rfe1 {[%emt 0:01:06]} Nf6 {[%emt 0:05:25]} 24. Nd4 {[%emt 0:00:26]} Qd7 {[%emt 0:06:05]} 25. Qxe5 {[%emt 0:00:37]} Rfe8 {[%emt 0:00:55]} 26. Qf4 {[%emt 0:05:55]} Rxe1+ {[%emt 0:05:47]} 27. Rxe1 {[%emt 0:00:46]} Re8 {[%emt 0:06:22]} 28. Re5 {[%emt 0:01:05]} Rxe5 {[%emt 0:06:34]} 29. Qxe5 {[%emt 0:00:07]} Kf8 {[%emt 0:00:29]} 30. Nf5 {[%emt 0:05:06]} Qd1+ {[%emt 0:01:48]} 31. Kh2 {[%emt 0:01:50]} Qxb3 {[%emt 0:00:27]} 32. Qe7+ {[%emt 0:02:22]} Kg8 {[%emt 0:00:05]} 33. Nxh6+ {[%emt 0:00:08]} gxh6 {[%emt 0:00:58]} 34. Qxf6 {[%emt 0:00:29]} Qxb2 {[%emt 0:02:30]} 35. Qxa6 {[%emt 0:00:28]} Kg7 {[%emt 0:00:34]} 36. Qb6 {[%emt 0:01:17]} Qb3 {[%emt 0:00:28]} 37. Qd4+ {[%emt 0:00:26]} Kg6 {[%emt 0:00:14]} 38. f4 {[%emt 0:02:34]} Qa4 {[%emt 0:00:08]} 39. Qe5 {[%emt 0:01:46]} Qc4 {[%emt 0:01:00]} 40. f5+ {[%emt 0:07:30]} Kh7 {[%emt 0:00:13]} 41. f6 {[%emt 0:04:21]} b4 {[%emt 0:00:47]} 42. cxb4 {[%emt 0:03:21]} Qxb4 {[%emt 0:00:04]} 43. Qg3 {[%emt 0:00:20]} Qf8 {[%emt 0:00:17]} 44. h4 {[%emt 0:01:47]} Kh8 {[%emt 0:00:10]} 45. h5 {[%emt 0:01:21]} Kh7 {[%emt 0:00:08]} 46. Qd3+ {[%emt 0:00:24]} Kh8 {[%emt 0:00:07]} 47. Qd7 {[%emt 0:00:37]} Qb8+ {[%emt 0:00:33]} 48. Kh3 {[%emt 0:00:32]} Qb3+ {[%emt 0:02:13]} 49. g3 {[%emt 0:00:19]} Kh7 {[%emt 0:00:47]} 50. Qg4 {[%emt 0:00:21]} Qe6 {[%emt 0:00:12]} 51. Qxe6 {[%emt 0:00:14]} fxe6 {[%emt 0:00:05]} 52. Kg4 {[%emt 0:00:11]} Kg8 {[%emt 0:01:04]} 53. Kf4 {[%emt 0:00:02]} Kf8 {[%emt 0:00:19]} 54. Ke5 {[%emt 0:00:07]} Kf7 {[%emt 0:00:05]} 55. g4 {[%emt 0:00:12]} 1-0

[Event "Catalan Youth-ch 2020"]
[Site "Salou"]
[Date "2020.09.06"]
[Round "3.4"]
[White "Salinas Tomas, Daniel"]
[Black "Clotet Mas, Dan"]
[Result "1-0"]
[ECO "E11"]
[WhiteElo "1979"]
[BlackElo "1583"]
[Annotator "NA"]
[PlyCount "87"]
[EventDate "2020.09.07"]
[EventType "swiss"]
[EventCountry "ESP"]
[SourceTitle "playchess.com"]
[Source "ChessBase"]
[SourceQuality "1"]
[TimeControl "5400+30"]

1. d4 {[%emt 0:00:00]} d5 {[%emt 0:00:07]} 2. Nf3 {[%emt 0:00:00]} Nf6 {[%emt 0:00:21]} 3. c4 {[%emt 0:00:09]} e6 {[%emt 0:02:59]} 4. g3 {[%emt 0:01:23]} Bb4+ {[%emt 0:04:11]} 5. Bd2 {[%emt 0:01:28]} a5 {[%emt 0:00:54]} 6. Qc2 {[%emt 0:03:39]} Nc6 {[%emt 0:04:07]} 7. Bg2 {[%emt 0:02:59]} O-O {[%emt 0:02:52]} 8. O-O {[%emt 0:01:08]} Bxd2 {[%emt 0:01:06]} 9. Nbxd2 {[%emt 0:01:35]} Ne7 {[%emt 0:07:31]} 10. e4 {[%emt 0:04:09]} c6 {[%emt 0:05:15]} 11. Rac1 {[%emt 0:05:18]} Ng6 {[%emt 0:06:51]} 12. Rfd1 {[%emt 0:06:03]} Re8 {[%emt 0:03:36]} 13. Ne5 {[%emt 0:02:40]} Qe7 {[%emt 0:03:28]} 14. h4 {[%emt 0:02:45]} Rd8 {[%emt 0:05:44]} 15. a3 {[%emt 0:11:40]} Bd7 {[%emt 0:03:28]} 16. Nxd7 {[%emt 0:01:21]} Rxd7 {[%emt 0:01:00]} 17. e5 {[%emt 0:00:56]} Ne8 {[%emt 0:03:36]} 18. cxd5 {[%emt 0:00:51]} cxd5 {[%emt 0:02:34]} 19. Nb3 {[%emt 0:02:07]} Rc7 {[%emt 0:04:21]} 20. Qd2 {[%emt 0:00:54]} a4 {[%emt 0:02:14]} 21. Nc5 {[%emt 0:01:07]} b6 {[%emt 0:00:40]} 22. Nd3 {[%emt 0:00:01]} Rac8 {[%emt 0:01:04]} 23. f4 {[%emt 0:01:32]} Rxc1 {[%emt 0:14:01]} 24. Rxc1 {[%emt 0:00:20]} Rxc1+ {[%emt 0:00:18]} 25. Nxc1 {[%emt 0:00:30]} Qc7 {[%emt 0:02:23]} 26. Na2 {[%emt 0:00:46]} Qc4 {[%emt 0:08:38]} 27. Nc3 {[%emt 0:00:00]} Qb3 {[%emt 0:01:29]} 28. Bf3 {[%emt 0:00:31]} Nc7 {[%emt 0:02:21]} 29. Bd1 {[%emt 0:00:50]} Qc4 {[%emt 0:00:14]} 30. Nxa4 {[%emt 0:02:00]} b5 {[%emt 0:01:38]} 31. Nc5 {[%emt 0:01:20]} b4 {[%emt 0:02:43]} 32. axb4 {[%emt 0:01:23]} Nb5 {[%emt 0:01:59]} 33. Bb3 {[%emt 0:02:24]} Qxd4+ {[%emt 0:00:27]} 34. Qxd4 {[%emt 0:00:01]} Nxd4 {[%emt 0:00:01]} 35. Ba4 {[%emt 0:00:00]} Nf3+ {[%emt 0:00:36]} 36. Kg2 {[%emt 0:00:47]} Nd2 {[%emt 0:01:02]} 37. b3 {[%emt 0:01:33]} Ne7 {[%emt 0:00:07]} 38. Bd7 {[%emt 0:00:39]} d4 {[%emt 0:02:21]} 39. b5 {[%emt 0:01:15]} Nd5 {[%emt 0:00:34]} 40. Bc6 {[%emt 0:02:05]} Nb6 {[%emt 0:00:06]} 41. Na4 {[%emt 0:01:12]} Nxa4 {[%emt 0:00:57]} 42. bxa4 Nc4 {[%emt 0:00:17]} 43. Be4 {[%emt 0:00:37]} Kf8 {[%emt 0:00:18]} 44. a5 {[%emt 0:01:53]} 1-0

[Event "Catalan Youth-ch 2020"]
[Site "Salou"]
[Date "2020.09.06"]
[Round "3.5"]
[White "Travesset Sagre, Jan"]
[Black "Gonzalez Cobos, Arnau"]
[Result "1-0"]
[ECO "A09"]
[WhiteElo "2093"]
[BlackElo "2006"]
[Annotator "NA"]
[PlyCount "89"]
[EventDate "2020.09.07"]
[EventType "swiss"]
[EventCountry "ESP"]
[SourceTitle "playchess.com"]
[Source "ChessBase"]
[SourceQuality "1"]
[TimeControl "5400+30"]

1. Nf3 {[%emt 0:00:00]} d5 {[%emt 0:00:00]} 2. c4 {[%emt 0:00:00]} d4 {[%emt 0:00:09]} 3. e3 {[%emt 0:00:28]} c5 {[%emt 0:01:51]} 4. exd4 {[%emt 0:00:06]} cxd4 {[%emt 0:00:04]} 5. d3 {[%emt 0:00:10]} Nc6 {[%emt 0:01:03]} 6. g3 {[%emt 0:01:37]} e5 {[%emt 0:01:02]} 7. Bg2 {[%emt 0:00:06]} Nf6 {[%emt 0:02:55]} 8. O-O {[%emt 0:00:07]} Bd6 {[%emt 0:00:54]} 9. Na3 {[%emt 0:06:50]} O-O {[%emt 0:02:56]} 10. Nc2 {[%emt 0:00:10]} Re8 {[%emt 0:03:57]} 11. Re1 {[%emt 0:01:00]} Qc7 {[%emt 0:02:51]} 12. Rb1 {[%emt 0:02:58]} a5 {[%emt 0:07:36]} 13. Na3 {[%emt 0:00:44]} Bxa3 {[%emt 0:00:51]} 14. bxa3 {[%emt 0:00:01]} Bf5 {[%emt 0:07:54]} 15. Rb5 {[%emt 0:01:51]} Nd7 {[%emt 0:04:09]} 16. Nh4 {[%emt 0:00:50]} Bg6 {[%emt 0:01:14]} 17. Nxg6 {[%emt 0:01:10]} hxg6 {[%emt 0:00:08]} 18. Bd2 {[%emt 0:00:26]} b6 {[%emt 0:05:16]} 19. h4 {[%emt 0:03:30]} Nc5 {[%emt 0:03:27]} 20. Bg5 {[%emt 0:00:18]} Ne6 {[%emt 0:05:18]} 21. Qf3 {[%emt 0:04:18]} Rac8 {[%emt 0:03:00]} 22. Qe2 {[%emt 0:24:30]} f6 {[%emt 0:04:43]} 23. Bc1 {[%emt 0:00:45]} Ne7 {[%emt 0:04:10]} 24. a4 {[%emt 0:08:42]} Nc5 {[%emt 0:02:51]} 25. Qd1 {[%emt 0:00:09]} Qd6 {[%emt 0:07:01]} 26. Ba3 {[%emt 0:00:24]} Rc7 {[%emt 0:02:02]} 27. Re2 {[%emt 0:01:22]} Nc8 {[%emt 0:00:49]} 28. Reb2 {[%emt 0:02:44]} Ree7 {[%emt 0:00:32]} 29. h5 {[%emt 0:01:46]} f5 {[%emt 0:06:41]} 30. Bd5+ {[%emt 0:00:05]} Kf8 {[%emt 0:01:27]} 31. Qd2 {[%emt 0:02:48]} f4 {[%emt 0:04:45]} 32. hxg6 {[%emt 0:04:43]} Qxg6 {[%emt 0:03:34]} 33. Bxc5 {[%emt 0:00:05]} bxc5 {[%emt 0:00:56]} 34. Kg2 {[%emt 0:00:22]} Red7 {[%emt 0:05:20]} 35. Qe2 {[%emt 0:01:25]} Qg5 {[%emt 0:00:44]} 36. Rb1 {[%emt 0:01:23]} Nd6 {[%emt 0:02:01]} 37. Rb8+ {[%emt 0:02:26]} Ke7 {[%emt 0:00:08]} 38. Rh1 {[%emt 0:00:01]} g6 {[%emt 0:01:57]} 39. Qf3 {[%emt 0:02:06]} Kf6 {[%emt 0:00:52]} 40. Rf8+ {[%emt 0:01:33]} Nf7 {[%emt 0:00:44]} 41. Rh7 {[%emt 0:00:37]} Re7 {[%emt 0:01:05]} 42. Bxf7 {[%emt 0:01:38]} Rxf7 {[%emt 0:00:02]} 43. Rfxf7+ {[%emt 0:00:09]} Rxf7 {[%emt 0:00:00]} 44. Qc6+ {[%emt 0:00:10]} Ke7 {[%emt 0:00:22]} 45. Qc7+ {[%emt 0:00:05]} 1-0

[Event "Catalan Youth-ch 2020"]
[Site "Salou"]
[Date "2020.09.06"]
[Round "3.5"]
[White "Lambert Pont, James"]
[Black "Domene Mulyukov, Alexander"]
[Result "0-1"]
[ECO "A45"]
[WhiteElo "1574"]
[BlackElo "1931"]
[Annotator "NA"]
[PlyCount "86"]
[EventDate "2020.09.07"]
[EventType "swiss"]
[EventCountry "ESP"]
[SourceTitle "playchess.com"]
[Source "ChessBase"]
[SourceQuality "1"]
[TimeControl "5400+30"]

1. d4 {[%emt 0:00:00]} Nf6 {[%emt 0:00:00]} 2. Bf4 {[%emt 0:00:10]} g6 {[%emt 0:00:00]} 3. Nc3 {[%emt 0:01:09]} d5 {[%emt 0:00:00]} 4. e3 {[%emt 0:01:07]} Bg7 {[%emt 0:00:00]} 5. h4 {[%emt 0:01:27]} c5 {[%emt 0:03:25]} 6. Nf3 {[%emt 0:03:09]} Bg4 {[%emt 0:01:11]} 7. Be2 {[%emt 0:00:12]} Nc6 {[%emt 0:01:11]} 8. Ne5 {[%emt 0:02:52]} Bxe2 {[%emt 0:01:07]} 9. Qxe2 {[%emt 0:00:29]} Qb6 {[%emt 0:00:00]} 10. Nb5 {[%emt 0:14:01]} a6 {[%emt 0:06:13]} 11. Nxc6 {[%emt 0:03:41]} axb5 {[%emt 0:00:18]} 12. Ne5 {[%emt 0:03:05]} O-O {[%emt 0:03:21]} 13. c3 {[%emt 0:03:41]} b4 {[%emt 0:08:32]} 14. dxc5 {[%emt 0:01:23]} Qxc5 {[%emt 0:00:33]} 15. Nd3 {[%emt 0:00:29]} Qa5 {[%emt 0:02:10]} 16. Nxb4 {[%emt 0:04:55]} Ne4 {[%emt 0:01:53]} 17. O-O {[%emt 0:01:03]} e5 {[%emt 0:06:58]} 18. Bh2 {[%emt 0:02:50]} f5 {[%emt 0:01:47]} 19. f3 {[%emt 0:00:40]} Nd6 {[%emt 0:01:28]} 20. Qd2 {[%emt 0:02:42]} Nc4 {[%emt 0:05:05]} 21. Qxd5+ {[%emt 0:02:47]} Qxd5 {[%emt 0:00:09]} 22. Nxd5 {[%emt 0:00:22]} Rfd8 {[%emt 0:03:08]} 23. Nc7 {[%emt 0:02:59]} Ra5 {[%emt 0:18:42]} 24. Rfd1 {[%emt 0:20:27]} Rc8 {[%emt 0:00:00]} 25. b4 {[%emt 0:05:55]} Ra7 {[%emt 0:00:00]} 26. Nd5 {[%emt 0:00:00]} b5 {[%emt 0:00:00]} 27. e4 {[%emt 0:00:31]} Rca8 {[%emt 0:00:00]} 28. Bg3 {[%emt 0:04:17]} Bh6 {[%emt 0:02:56]} 29. exf5 {[%emt 0:02:18]} gxf5 {[%emt 0:00:59]} 30. Bf2 {[%emt 0:00:32]} Rg7 {[%emt 0:04:27]} 31. Bc5 {[%emt 0:01:00]} Kh8 {[%emt 0:17:20]} 32. Ne7 {[%emt 0:05:27]} Be3+ {[%emt 0:03:10]} 33. Bxe3 {[%emt 0:01:36]} Nxe3 {[%emt 0:00:52]} 34. Rd3 {[%emt 0:03:00]} f4 {[%emt 0:02:47]} 35. Nd5 {[%emt 0:00:50]} Nxg2 {[%emt 0:00:37]} 36. Kf1 {[%emt 0:02:33]} Nxh4 {[%emt 0:02:46]} 37. Nb6 {[%emt 0:01:18]} Rag8 {[%emt 0:00:14]} 38. Re1 {[%emt 0:01:33]} Nf5 {[%emt 0:00:33]} 39. a3 {[%emt 0:01:57]} Rg1+ {[%emt 0:00:21]} 40. Ke2 {[%emt 0:00:05]} R8g2+ {[%emt 0:00:19]} 41. Kd1 {[%emt 0:00:02]} Ne3+ {[%emt 0:00:07]} 42. Rdxe3 {[%emt 0:01:04]} fxe3 {[%emt 0:00:10]} 43. Nd5 {[%emt 0:00:25]} Rd2+ {[%emt 0:00:11]} 0-1

[Event "Catalan Youth-ch 2020"]
[Site "Salou"]
[Date "2020.09.06"]
[Round "3.6"]
[White "Pujol Biosca, Joan"]
[Black "Roca Planas, Edgar"]
[Result "1/2-1/2"]
[ECO "B18"]
[WhiteElo "1697"]
[BlackElo "2059"]
[Annotator "NA"]
[PlyCount "143"]
[EventDate "2020.09.07"]
[EventType "swiss"]
[EventCountry "ESP"]
[SourceTitle "playchess.com"]
[Source "ChessBase"]
[SourceQuality "1"]
[TimeControl "5400+30"]

1. e4 {[%emt 0:00:00]} c6 {[%emt 0:00:00]} 2. d4 {[%emt 0:00:06]} d5 {[%emt 0:00:00]} 3. Nc3 {[%emt 0:00:30]} dxe4 {[%emt 0:00:00]} 4. Nxe4 {[%emt 0:00:14]} Bf5 {[%emt 0:01:20]} 5. Ng3 {[%emt 0:00:46]} Bg6 {[%emt 0:00:05]} 6. Nf3 {[%emt 0:00:36]} Nd7 {[%emt 0:00:11]} 7. Bd3 {[%emt 0:01:05]} e6 {[%emt 0:01:02]} 8. O-O {[%emt 0:02:06]} Qc7 {[%emt 0:00:50]} 9. c3 {[%emt 0:01:42]} Ngf6 {[%emt 0:00:13]} 10. Re1 {[%emt 0:02:07]} Bd6 {[%emt 0:02:35]} 11. Qc2 {[%emt 0:07:28]} O-O-O {[%emt 0:07:12]} 12. b4 {[%emt 0:02:25]} Kb8 {[%emt 0:06:10]} 13. Bd2 {[%emt 0:03:28]} e5 {[%emt 0:04:23]} 14. a4 {[%emt 0:06:25]} exd4 {[%emt 0:18:08]} 15. cxd4 {[%emt 0:03:44]} Nd5 {[%emt 0:04:15]} 16. Reb1 {[%emt 0:05:44]} N7f6 {[%emt 0:02:30]} 17. Ne4 {[%emt 0:05:40]} Nxe4 {[%emt 0:02:55]} 18. Bxe4 {[%emt 0:00:16]} Rhe8 {[%emt 0:00:36]} 19. Bxg6 {[%emt 0:02:26]} hxg6 {[%emt 0:00:11]} 20. Qd3 {[%emt 0:03:46]} Rh8 {[%emt 0:07:43]} 21. g3 {[%emt 0:02:10]} Rh5 {[%emt 0:09:54]} 22. b5 {[%emt 0:03:53]} c5 {[%emt 0:00:00]} 23. Rc1 {[%emt 0:02:41]} Qe7 {[%emt 0:00:00]} 24. Re1 {[%emt 0:02:57]} Qd7 {[%emt 0:00:17]} 25. Rac1 {[%emt 0:02:04]} Nf6 {[%emt 0:07:14]} 26. dxc5 {[%emt 0:03:16]} Rxc5 {[%emt 0:00:44]} 27. Rxc5 {[%emt 0:02:38]} Bxc5 {[%emt 0:00:03]} 28. Bf4+ {[%emt 0:03:21]} Ka8 {[%emt 0:05:46]} 29. Qxd7 {[%emt 0:07:31]} Rxd7 {[%emt 0:00:24]} 30. Ne5 {[%emt 0:00:26]} Re7 {[%emt 0:01:06]} 31. Rc1 {[%emt 0:00:42]} b6 {[%emt 0:00:46]} 32. Nd3 {[%emt 0:02:03]} Nd7 {[%emt 0:02:08]} 33. Nxc5 {[%emt 0:02:38]} Nxc5 {[%emt 0:00:18]} 34. Bd6 {[%emt 0:00:16]} Re4 {[%emt 0:00:00]} 35. Bxc5 {[%emt 0:00:46]} bxc5 {[%emt 0:00:00]} 36. Rxc5 {[%emt 0:00:06]} Rxa4 {[%emt 0:06:35]} 37. Rc7 {[%emt 0:01:35]} Rb4 {[%emt 0:00:47]} 38. Rxf7 {[%emt 0:00:47]} Rxb5 {[%emt 0:00:05]} 39. Rxg7 {[%emt 0:00:07]} Rb6 {[%emt 0:00:06]} 40. Re7 {[%emt 0:03:57]} a5 {[%emt 0:00:11]} 41. Re1 {[%emt 0:00:54]} a4 {[%emt 0:01:10]} 42. Ra1 {[%emt 0:00:00]} Rb4 {[%emt 0:00:04]} 43. h4 {[%emt 0:01:17]} Ka7 {[%emt 0:00:06]} 44. f4 {[%emt 0:01:45]} Ka6 {[%emt 0:00:20]} 45. f5 {[%emt 0:00:28]} gxf5 {[%emt 0:00:48]} 46. h5 {[%emt 0:00:07]} Ka5 {[%emt 0:00:12]} 47. Rf1 {[%emt 0:00:53]} a3 {[%emt 0:04:25]} 48. Rxf5+ {[%emt 0:01:00]} Rb5 {[%emt 0:00:51]} 49. Rf3 {[%emt 0:01:10]} Ka4 {[%emt 0:00:13]} 50. Rf4+ {[%emt 0:00:43]} Ka5 {[%emt 0:02:37]} 51. Rf3 {[%emt 0:00:21]} Ka4 {[%emt 0:03:00]} 52. Rf4+ {[%emt 0:00:20]} Rb4 {[%emt 0:00:17]} 53. Rf8 {[%emt 0:00:51]} Rb1+ {[%emt 0:00:52]} 54. Kh2 {[%emt 0:00:16]} a2 {[%emt 0:00:07]} 55. h6 {[%emt 0:00:58]} Rh1+ {[%emt 0:03:59]} 56. Kg2 {[%emt 0:01:23]} Rxh6 {[%emt 0:01:40]} 57. Ra8+ {[%emt 0:00:10]} Kb3 {[%emt 0:00:12]} 58. Rb8+ {[%emt 0:00:15]} Kc2 {[%emt 0:00:46]} 59. Rc8+ {[%emt 0:00:45]} Kb2 {[%emt 0:00:04]} 60. Rb8+ {[%emt 0:00:40]} Ka1 {[%emt 0:00:50]} 61. g4 {[%emt 0:00:00]} Rc6 {[%emt 0:00:04]} 62. Kh3 {[%emt 0:00:44]} Rc2 {[%emt 0:00:18]} 63. g5 {[%emt 0:00:24]} Rb2 {[%emt 0:01:08]} 64. Ra8 {[%emt 0:00:13]} Rb3+ {[%emt 0:00:31]} 65. Kh4 {[%emt 0:00:18]} Kb2 {[%emt 0:00:15]} 66. Rxa2+ {[%emt 0:00:49]} Kxa2 {[%emt 0:00:04]} 67. Kh5 {[%emt 0:00:14]} Rg3 {[%emt 0:01:19]} 68. Kh6 {[%emt 0:00:43]} Kb3 {[%emt 0:00:18]} 69. g6 {[%emt 0:00:20]} Kc4 {[%emt 0:00:21]} 70. g7 {[%emt 0:00:16]} Kd5 {[%emt 0:00:49]} 71. Kh7 {[%emt 0:00:14]} Rh3+ {[%emt 0:00:22]} 72. Kg6 {[%emt 0:00:12]} 1/2-1/2